[Event "21st IPCA World Championship 2022"]
[Site "Ashdod"]
[Date "2022.05.10"]
[Round "3.1"]
[White "Yarmonov, Igor"]
[Black "Obodchuk, Andrei"]
[Result "0-1"]
[ECO "D00"]
[WhiteElo "2394"]
[BlackElo "2295"]
[Annotator "TA"]
[PlyCount "68"]
[EventDate "2022.05.09"]
[EventType "swiss"]
[EventCountry "ISR"]
[SourceTitle "playchess.com"]
[Source "ChessBase"]
[SourceQuality "1"]
[TimeControl "5400+30"]

{[%evp 10,68,2,0,8,4,14,0,0,0,7,0,9,0,0,0,0,-12,8,0,1,0,0,0,6,2,13,-8,0,0,0,0,0,0,0,0,0,0,0,-8,-8,-8,-8,-8,-8,-8,-8,-50,-10,-263,0,0,-3,-8,-3,-446,-432,-405,-216,-592,-565]} 1. d4 {[%emt 0:00:04]} Nf6 {[%emt 0:00:10]} 2. Bf4 {[%emt 0:00:20]} d5 {[%emt 0:00:14]} 3. c3 {[%emt 0:00:07]} e6 {[%emt 0:03:37]} 4. e3 {[%emt 0:00:12]} c5 {[%emt 0:00:18]} 5. Nd2 {[%emt 0:00:21]} Nc6 {[%emt 0:00:43]} 6. Bd3 {[%emt 0:00:14]} Be7 {[%emt 1:28:28] D00: 1 d4 d5: Unusual lines.} 7. h3 {[%emt 0:00:21]} Bd6 {[%emt 0:00:00]} 8. Bxd6 {[%emt 0:00:27]} Qxd6 {[%emt 0:00:00] The position is equal.} 9. Ngf3 {[%emt 0:00:43]} O-O {[%emt 0:00:00]} 10. O-O {[%emt 0:00:06]} e5 {[%emt 0:00:00] [#] Threatens to win with ...e4.} 11. dxe5 {[%emt 0:01:19]} Nxe5 {[%emt 0:00:00]} 12. Nxe5 {[%emt 0:00:34]} Qxe5 {[%emt 0:00:00]} 13. Re1 {[%emt 0:03:16] [#]} Bf5 $146 {[%emt 0:00:00]} ({Predecessor:} 13... Rd8 14. e4 Bxh3 15. gxh3 dxe4 16. Nxe4 c4 17. Nxf6+ Qxf6 18. Bxh7+ Kxh7 19. Qh5+ Kg8 {0-1 (39) Kaliksteyn,A (2391)-Guo,A (2422) New York 2021}) 14. Bxf5 {[%emt 0:00:43]} Qxf5 {[%emt 0:00:00]} 15. Qb1 {[%emt 0:00:04]} Qxb1 {[%emt 0:00:00]} 16. Raxb1 {[%emt 0:00:03]} Rfd8 {[%emt 0:00:00]} 17. f3 {[%emt 0:00:20]} Kf8 {[%emt 0:00:00]} 18. b4 {[%emt 0:01:01]} d4 {[%emt 0:00:00]} 19. exd4 {[%emt 0:00:26]} cxd4 {[%emt 0:00:00]} 20. c4 {[%emt 0:00:30]} a5 {[%emt 0:00:00]} 21. a4 {[%emt 0:06:30]} Nd7 {[%emt 0:00:00]} 22. bxa5 {[%emt 0:05:23]} Rxa5 {[%emt 0:00:00]} 23. Rxb7 {[%emt 0:00:36]} Rxa4 {[%emt 0:00:00]} 24. Rc7 {[%emt 0:00:05]} Ra2 {[%emt 0:00:00]} 25. Ne4 {[%emt 0:02:33]} d3 {[%emt 0:00:00] White must now prevent ...Rc2.} 26. Rd1 {[%emt 0:11:04]} Ne5 {[%emt 0:00:00]} 27. f4 {[%emt 0:10:29]} Ng6 {[%emt 0:00:00]} 28. g3 {[%emt 0:00:13]} (28. Ng5 {with more complications.} Nh4 29. Rxf7+ Kg8 30. Rxg7+ Kxg7 31. Ne6+) 28... Ne7 {[%emt 0:00:00]} (28... Re2 $5 {[%cal Re2e4]} 29. Nc3 Rc2 $15) 29. Rd2 $2 {[%emt 0:05:11][%mdl 8192] [#]} (29. Nc5 $1 $11 {and White has nothing to worry.}) 29... Rxd2 $2 {[%emt 0:00:00]} ({Black should play} 29... f5 $1 $19 30. Rxa2 fxe4) 30. Nxd2 $11 {[%emt 0:00:04]} Nf5 {[%emt 0:00:00]} 31. Kf2 {[%emt 0:00:21]} Re8 {[%emt 0:00:00] Hoping for ...Re2+.} 32. Rc5 $2 {[%emt 0:14:04][%mdl 8192]} (32. Nb3 $1 $11) 32... Re2+ $19 {[%emt 0:00:00]} 33. Kg1 {[%emt 0:00:01]} Nxg3 {[%emt 0:00:00]} ({And not} 33... Rxd2 34. Rxf5 Rc2 35. Rd5 $11) (33... g6 $142 34. g4 Ne7) 34. Nf1 {[%emt 0:02:39]} (34. Rg5) 34... d2 {[%emt 0:14:00] Weighted Error Value: White=0.57/Black=0.36} 0-1

[Event "21st IPCA World Championship 2022"]
[Site "Ashdod"]
[Date "2022.05.10"]
[Round "3.2"]
[White "Campos, Eugenio"]
[Black "Mikheev, Stanislav"]
[Result "0-1"]
[ECO "C02"]
[WhiteElo "2247"]
[BlackElo "2333"]
[Annotator "TA"]
[PlyCount "124"]
[EventDate "2022.05.09"]
[EventType "swiss"]
[EventCountry "ISR"]
[SourceTitle "playchess.com"]
[Source "ChessBase"]
[SourceQuality "1"]
[TimeControl "5400+30"]

{[%evp 20,124,20,21,33,29,36,12,14,0,0,0,0,-15,61,55,68,54,41,48,49,41,50,20,110,113,102,113,88,56,96,88,183,173,175,-2,-9,-8,-5,-8,-8,-19,-15,-15,-17,-84,-86,-145,-144,-300,-296,-294,-282,-272,-227,-326,-306,-344,-343,-327,-312,-214,-271,-303,-214,-214,-214,-214,-214,-426,-426,-431,-412,-391,-404,-388,-332,-324,-324,-324,-326,-323,-323,-434,-422,-421,-416,-408,-405,-729,-728,-1455,-1388,-1185,-905,-6845,-5635,-1912,-1461,-29978,-29979,-29981,-29982,-29982,-29983,-29973,-8628]} 1. e4 {[%emt 0:00:05]} e6 {[%emt 0:00:14]} 2. d4 {[%emt 0:00:10]} d5 {[%emt 0:00:05]} 3. e5 {[%emt 0:00:07]} c5 {[%emt 0:00:12]} 4. c3 {[%emt 0:00:05]} Nc6 {[%emt 0:00:06]} 5. Nf3 {[%emt 0:00:16]} Qb6 {[%emt 0:00:09]} 6. a3 {[%emt 0:00:07]} Nh6 {[%emt 0:00:52]} 7. b4 {[%emt 0:01:05]} cxd4 {[%emt 0:00:10]} 8. cxd4 {[%emt 0:00:11]} Nf5 {[%emt 0:00:03]} 9. Bb2 {[%emt 0:00:28]} Bd7 {[%emt 0:00:13]} 10. g4 {[%emt 0:02:14]} Nh6 {[%emt 0:07:45]} 11. h3 {[%emt 0:00:53] 11.h3 scores better than 11.Rg1.} Rc8 {[%emt 0:03:06] C02: French: Advance Variation.} 12. Nc3 {[%emt 0:01:37]} Na5 {[%emt 0:09:52]} 13. Na4 {[%emt 0:08:17]} Qc6 {[%emt 0:00:49] The position is equal.} 14. Rc1 {[%emt 0:03:19]} Nc4 {[%emt 0:00:32]} 15. Bxc4 {[%emt 0:01:16] [#]} dxc4 $146 {[%emt 0:01:50]} ({Predecessor:} 15... Qxa4 16. Qxa4 Bxa4 17. Bb5+ Bxb5 18. Rxc8+ Kd7 19. Rc3 Be7 20. Kd2 Bd8 21. Ra1 a5 {1-0 (44) Kolesar,R (1908)-Hurban,M (1746) Liptovsky Mikulas 2007}) 16. Nc3 {[%emt 0:00:22]} Be7 {[%emt 0:03:58]} ({Black should try} 16... Ng8 $1 $11) 17. O-O $36 {[%emt 0:02:01][%mdl 2048] White is more active.} O-O {[%emt 0:05:40]} 18. d5 {[%emt 0:00:42]} (18. b5 $5 {[%cal Rb5c6]} Qb6 19. a4 $14) 18... exd5 {[%emt 0:00:59]} 19. Nd4 {[%emt 0:02:10][%mdl 64] [#] Deflection} ({Much worse is} 19. Qxd5 Rcd8 $11) 19... Qg6 {[%emt 0:00:35][%cal Rh6g4]} ({Weaker is} 19... Qc7 20. Nxd5 Qd8 21. Qe2 $16) 20. Nxd5 {[%emt 0:00:51] Pair of Knights!} Rfe8 {[%emt 0:05:47][%cal Rh6g4] And now ...Nxg4! would win.} 21. Rc3 {[%emt 0:01:34]} Qe4 {[%emt 0:06:03]} (21... Bf8 $11) 22. Nxe7+ $16 {[%emt 0:00:52]} Rxe7 {[%emt 0:00:01]} 23. Re1 {[%emt 0:00:01]} Qg6 {[%emt 0:02:33]} 24. Qf3 {[%emt 0:00:43]} b5 {[%emt 0:08:15]} 25. Rce3 {[%emt 0:02:01]} Bxg4 {[%emt 0:10:22]} 26. hxg4 $18 {[%emt 0:02:04]} Nxg4 {[%emt 0:00:06]} 27. Qf5 $2 {[%emt 0:00:52]} Nxe3+ $11 {[%emt 0:00:27][%mdl 64] [#] Discovered Attack} 28. Qxg6 {[%emt 0:00:05]} hxg6 {[%emt 0:00:11]} 29. Rxe3 {[%emt 0:00:06]} a6 {[%emt 0:00:49]} 30. f4 {[%emt 0:00:31]} Rd7 {[%emt 0:01:54]} 31. Kf2 $1 {[%emt 0:00:27]} Rcd8 {[%emt 0:04:36]} 32. Re4 {[%emt 0:01:11]} (32. e6 $1 $11 {keeps the balance.} fxe6 33. Re4) 32... f5 $17 {[%emt 0:00:54]} 33. exf6 {[%emt 0:00:32]} (33. e6 $142) 33... gxf6 {[%emt 0:00:03]} 34. Ke3 $2 {[%emt 0:00:15]} (34. Ne6 $17 {was called for.} Rd2+ 35. Ke1 Rd1+ 36. Kf2 R8d2+ 37. Re2) 34... Kf7 $19 {[%emt 0:01:47]} 35. f5 {[%emt 0:00:33]} gxf5 {[%emt 0:05:54]} 36. Rh4 {[%emt 0:02:39]} Kg6 {[%emt 0:01:15] Prevents Rh7.} 37. Kf3 {[%emt 0:01:09]} (37. Bc1 {was necessary.}) 37... Rh7 {[%emt 0:02:30]} 38. Rxh7 {[%emt 0:02:58]} Kxh7 {[%emt 0:00:02]} 39. Kf4 {[%emt 0:00:09]} Kg6 {[%emt 0:00:36]} 40. Bc3 {[%emt 0:00:22]} Rd5 {[%emt 0:01:36]} 41. Kf3 {[%emt 0:02:12]} Re5 {[%emt 0:02:00]} 42. Ne2 {[%emt 0:01:12]} Re8 {[%emt 0:01:03]} 43. Nf4+ {[%emt 0:00:27]} Kf7 {[%emt 0:00:15]} 44. Nd5 $2 {[%emt 0:01:59]} (44. Nh3) 44... Rd8 {[%emt 0:00:35]} 45. Nf4 {[%emt 0:00:18]} Rd1 {[%emt 0:00:18]} 46. Ke2 {[%emt 0:00:42]} Rh1 {[%emt 0:00:18]} 47. Ke3 {[%emt 0:01:03]} Rh2 {[%emt 0:01:24]} 48. Bd2 {[%emt 0:01:54]} Ke7 {[%emt 0:00:21]} 49. Nd5+ {[%emt 0:01:05]} Kd6 {[%emt 0:00:18]} 50. Nf4 {[%emt 0:01:39]} Kc6 {[%emt 0:01:39]} 51. Bc3 {[%emt 0:01:47]} Ra2 {[%emt 0:00:26]} 52. Kd4 {[%emt 0:00:56]} Rxa3 {[%emt 0:00:58]} 53. Nd5 {[%emt 0:00:07]} Kd6 {[%emt 0:01:11] Prevents Ne7.} 54. Nxf6 {[%emt 0:00:27]} (54. Nf4 $142) 54... f4 {[%emt 0:03:45] White must now prevent ...Ke6.} 55. Ne4+ {[%emt 0:08:46]} Ke6 {[%emt 0:00:13]} 56. Nd2 {[%emt 0:01:25]} Kf5 {[%emt 0:00:28] ...Ra2 is the strong threat.} 57. Nb1 {[%emt 0:02:02]} Ra2 {[%emt 0:01:30] ( -> ...f3)} 58. Nd2 {[%emt 0:00:45]} Rc2 {[%emt 0:00:38] Strongly threatening ...Ra2.} 59. Ne4 {[%emt 0:00:44]} Re2 {[%emt 0:01:25] Black mates.} 60. Nd6+ {[%emt 0:02:36]} Kg4 {[%emt 0:00:20]} 61. Kc5 {[%emt 0:01:21]} f3 {[%emt 0:00:21]} 62. Bd4 {[%emt 0:00:15]} f2 {[%emt 0:00:21] Never resign too early!  Weighted Error Value: White=0.59/Black=0.12 (very precise)} (62... c3 $142 63. Bxc3 f2 64. Bd4 f1=Q 65. Kc6 Qf3+ 66. Kd7 Qf8 67. Kc6 Re6 68. Bc5 Qc8+ 69. Kd5 Qd7 70. Kd4 Qc6 71. Kd3 Qd5+ 72. Bd4 Qxd6 73. Kc3 Re2 74. Be3 Qc6+ 75. Kd4 Kf5 76. Bg1 Qc4#) 0-1

[Event "21st IPCA World Championship 2022"]
[Site "Ashdod"]
[Date "2022.05.10"]
[Round "3.3"]
[White "Zilberman, Yaacov"]
[Black "Gerasimova, Svetlana"]
[Result "1-0"]
[ECO "A71"]
[WhiteElo "2315"]
[BlackElo "1906"]
[Annotator "TA"]
[PlyCount "77"]
[EventDate "2022.05.09"]
[EventType "swiss"]
[EventCountry "ISR"]
[SourceTitle "playchess.com"]
[Source "ChessBase"]
[SourceQuality "1"]
[TimeControl "5400+30"]

{[%evp 16,77,56,58,93,92,77,77,83,97,89,78,113,119,115,116,110,61,134,133,131,105,218,179,188,187,190,197,191,187,216,125,116,131,616,358,1058,1011,1545,1545,1545,1375,1217,1191,1799,1757,29975,29977,29987,29988,29994,1577,29982,1050,919,590,5306,5306,29976,29978,29987,1645,29990,29991]} 1. d4 {[%emt 0:05:12]} Nf6 {[%emt 0:00:06]} 2. c4 {[%emt 0:00:09]} c5 {[%emt 0:00:18]} 3. d5 {[%emt 0:00:11]} e6 {[%emt 0:00:09]} 4. Nc3 {[%emt 0:00:10]} exd5 {[%emt 0:00:13]} 5. cxd5 {[%emt 0:00:08]} d6 {[%emt 0:00:07]} 6. Nf3 {[%emt 0:00:38]} g6 {[%emt 0:00:09]} 7. e4 {[%emt 0:00:14]} Bg7 {[%emt 0:00:10]} 8. Bg5 {[%emt 0:00:26]} O-O {[%emt 0:01:14]} 9. Nd2 {[%emt 0:00:25]} b6 {[%emt 0:05:11] A71: Modern Benoni: 6 e4 g6 7 Nf3 Bg7 8 Bg5 without Be2.} 10. Be2 {[%emt 0:03:23]} Na6 {[%emt 0:03:40]} 11. O-O {[%emt 0:01:37]} Nc7 {[%emt 0:01:29] [#] White is better.} 12. f4 $146 {[%emt 0:02:08]} ({Predecessor:} 12. a4 Qd7 13. Nc4 Ba6 14. b3 Rfe8 15. Qc2 Bxc4 16. bxc4 Na6 17. f3 Nh5 18. Rae1 Bd4+ 19. Kh1 f6 20. Bd2 g5 21. f4 Nxf4 22. Bxf4 gxf4 23. Rxf4 {0-1 (62) Sinkovics,P (2290)-Szalanczy,E (2400) Bad Orb 1989}) 12... Qd7 {[%emt 0:05:32]} 13. a4 {[%emt 0:03:58]} Ba6 {[%emt 0:03:39]} 14. Bxa6 {[%emt 0:02:20]} Nxa6 {[%emt 0:00:03]} 15. Nc4 {[%emt 0:02:28]} Nb4 {[%emt 0:09:24]} 16. h3 {[%emt 0:27:34]} (16. f5 $16) 16... Rab8 {[%emt 0:05:51]} (16... Rae8 $14) 17. Qd2 $16 {[%emt 0:07:04]} a6 {[%emt 0:14:25]} 18. Rae1 {[%emt 0:07:32]} Rfe8 {[%emt 0:04:38]} (18... Nh5 $16) 19. Kh2 {[%emt 0:10:04]} b5 {[%emt 0:04:24]} 20. axb5 {[%emt 0:00:51]} axb5 {[%emt 0:00:02] [#]} 21. Nxd6 {[%emt 0:01:03][%mdl 512]} Qxd6 {[%emt 0:02:11]} 22. e5 {[%emt 0:00:15]} Qb6 {[%emt 0:02:43] aiming for ...Nd7.} 23. exf6 {[%emt 0:00:43]} (23. Bxf6 $18 Bxf6 24. exf6) 23... Rxe1 {[%emt 0:00:23]} 24. Rxe1 {[%emt 0:01:08]} Bxf6 {[%emt 0:00:15][%mdl 8192] This move loses the game for Black.} (24... Bf8 $16) 25. Ne4 {[%emt 0:01:21]} Bxg5 {[%emt 0:02:22]} (25... Bd4 26. d6 h6) 26. fxg5 $18 {[%emt 0:00:18]} Rd8 {[%emt 0:01:48]} 27. Nf6+ {[%emt 0:00:35]} Kh8 {[%emt 0:04:47]} 28. Qc3 {[%emt 0:01:27] Threatening mate with Ne8+.} Qd6+ {[%emt 0:01:56]} 29. Kh1 {[%emt 0:01:00]} Na2 {[%emt 0:00:19]} 30. Qf3 {[%emt 0:02:32]} Qf8 {[%emt 0:05:02]} 31. Re4 {[%emt 0:04:22]} h5 {[%emt 0:03:06]} 32. Rh4 {[%emt 0:04:42]} Qg7 {[%emt 0:02:10] [#]} 33. Qe3 {[%emt 0:01:06]} (33. Rxh5+ $142 $1 {[%mdl 512]} Qh6 34. Rxh6+ Kg7 35. Nh5+ $1 {[%mdl 512]} Kf8 36. Rh8+ Ke7 37. Qf6+ Kd7 38. Qxd8#) 33... Qf8 {[%emt 0:01:05]} 34. Re4 {[%emt 0:00:25]} (34. Qe2 $142 Qd6 {[#]} 35. Rxh5+ $1 {[%mdl 512]} Kg7 36. Rh7+ Kf8 37. Ne8 $1 {[%mdl 512]} Kg8 38. Nxd6 Kxh7 39. Qe7) 34... Nb4 {[%emt 0:01:00]} 35. Re7 {[%emt 0:01:08]} Nd3 {[%emt 0:03:39]} 36. Nd7 {[%emt 0:01:15]} Nf2+ {[%emt 0:03:07]} 37. Kg1 {[%emt 0:00:34]} Nd1 {[%emt 0:00:22]} 38. Qe1 {[%emt 0:00:28]} (38. Qe5+ $142 Qg7 39. Nf6 Qf8 40. Nxh5+ Kh7 41. Nf6+ Kh8 42. Re8 Rxe8 43. Nxe8+ f6 44. Nxf6) 38... Nxb2 {[%emt 0:01:24]} 39. Nxf8 {[%emt 0:09:06] Weighted Error Value: White=0.44/Black=1.38} 1-0

[Event "21st IPCA World Championship 2022"]
[Site "Ashdod"]
[Date "2022.05.10"]
[Round "3.4"]
[White "Gurbanov, Andrei"]
[Black "Srimskov, Elishar"]
[Result "1-0"]
[ECO "D36"]
[WhiteElo "2302"]
[BlackElo "1992"]
[Annotator "TA"]
[PlyCount "91"]
[EventDate "2022.05.09"]
[EventType "swiss"]
[EventCountry "ISR"]
[SourceTitle "playchess.com"]
[Source "ChessBase"]
[SourceQuality "1"]
[TimeControl "5400+30"]

{[%evp 16,91,25,0,41,32,49,40,54,45,48,45,71,56,81,75,117,121,111,124,127,125,138,110,97,78,76,54,55,59,92,42,90,87,120,118,109,87,109,66,130,112,101,64,73,58,70,62,73,67,79,60,139,57,56,43,80,69,72,56,90,47,205,247,346,335,878,877,805,787,980,1017,1006,1002,956,847,29966,4910]} 1. d4 {[%emt 0:01:22]} d5 {[%emt 0:00:36]} 2. c4 {[%emt 0:00:05]} e6 {[%emt 0:00:17]} 3. Nc3 {[%emt 0:00:05]} Nf6 {[%emt 0:00:32]} 4. Bg5 {[%emt 0:00:12]} c6 {[%emt 0:01:14]} 5. e3 {[%emt 0:00:22]} Nbd7 {[%emt 0:02:13]} 6. cxd5 {[%emt 0:00:19]} exd5 {[%emt 0:01:05]} 7. Bd3 {[%emt 0:00:09]} Be7 {[%emt 0:01:01]} 8. Qc2 {[%emt 0:00:26]} h6 {[%emt 0:00:38] 8...Nh5 is setting a new trend.} 9. Bf4 {[%emt 0:02:10]} b6 {[%emt 0:08:49] D36: Queen's Gambit Declined: Exchange Variation: Main line (5 Bg5 c6 6 Qc2).} (9... Nh5 $5 {[%cal Rh5f4]}) 10. Nf3 {[%emt 0:03:38]} Bb7 {[%emt 0:03:44]} 11. h3 {[%emt 0:02:08]} Rc8 {[%emt 0:08:15] White is slightly better.} 12. O-O {[%emt 0:03:38]} O-O {[%emt 0:02:54]} 13. Bf5 {[%emt 0:02:21] [#]} Ra8 $146 {[%emt 0:05:33]} ({Predecessor:} 13... c5 14. Rac1 a6 15. Ne5 c4 16. Qd1 b5 17. Nxd7 Nxd7 18. Bxh6 Rc6 19. Bf4 g6 {1-0 (32) Chevannes,S (2176)-Klotz Burwell,H (2006) Santa Clara 2014}) 14. Rad1 {[%emt 0:01:23]} Ne8 {[%emt 0:02:00]} 15. e4 {[%emt 0:02:51][%cal Be3e4,Be4e5][%mdl 32] 0x0.0026dc145811dp-1022s more active pieces. The black rooks are badly placed.} Nd6 {[%emt 0:01:42]} 16. Bxd6 {[%emt 0:00:33]} Bxd6 {[%emt 0:00:03]} 17. e5 {[%emt 0:00:21]} Bc7 {[%emt 0:05:12]} 18. Rfe1 {[%emt 0:00:47]} Kh8 {[%emt 0:00:25]} 19. Qd2 {[%emt 0:02:14]} Re8 {[%emt 0:01:27]} 20. a3 {[%emt 0:04:11]} Nf8 {[%emt 0:00:33]} 21. b4 {[%emt 0:00:14]} Bc8 {[%emt 0:01:02]} 22. Bb1 {[%emt 0:00:33]} Be6 {[%emt 0:01:47]} 23. b5 {[%emt 0:01:59]} (23. Rc1 $16) 23... cxb5 {[%emt 0:01:39]} (23... c5 $14 {is more appropriate.}) 24. Nxb5 $16 {[%emt 0:00:08]} a6 {[%emt 0:00:56]} 25. Nxc7 {[%emt 0:00:06]} Qxc7 {[%emt 0:00:01]} 26. Re3 {[%emt 0:01:47]} Qe7 {[%emt 0:02:51]} 27. Ne1 {[%emt 0:01:14]} (27. Nh2 {with more complications.} Qg5 28. Rf1 Ng6 29. Nf3) 27... b5 {[%emt 0:06:01]} (27... Qg5 $14) 28. f4 {[%emt 0:00:17] [#] aiming for f5.} f5 {[%emt 0:02:26]} 29. exf6 {[%emt 0:01:21]} Qxf6 {[%emt 0:00:20]} 30. Nf3 {[%emt 0:06:23]} Bf5 $1 {[%emt 0:03:02]} (30... Qxf4 $2 31. Rf1 h5 32. Ne5 $18) 31. Ne5 {[%emt 0:00:52]} Bxb1 {[%emt 0:01:05]} 32. Rxb1 {[%emt 0:00:03]} Qf5 {[%emt 0:03:34]} 33. Rf1 {[%emt 0:02:23]} Rec8 {[%emt 0:02:33]} (33... Kg8 $14) 34. g4 {[%emt 0:00:44]} (34. Qa2 $16) 34... Qc2 $1 $14 {[%emt 0:01:25]} 35. Qb4 {[%emt 0:00:45]} Qa4 {[%emt 0:05:06]} (35... Ng6 $2 36. Rf2 Qc1+ 37. Re1 Nxe5 38. Rxc1 Rxc1+ 39. Kh2 $18) 36. Qxa4 {[%emt 0:02:30]} bxa4 {[%emt 0:00:01]} 37. f5 $36 {[%emt 0:00:13][%cal Bf4f5,Bf5f6][%mdl 2080] White has the initiative.} Rc7 {[%emt 0:04:01]} 38. f6 {[%emt 0:00:36]} g6 $2 {[%emt 0:23:27] Loses the game.} ({Black should play} 38... Rb8 $14) 39. h4 $18 {[%emt 0:04:00]} Kh7 {[%emt 0:00:30]} (39... Kg8 {is a better defense.} 40. h5 g5) 40. g5 {[%emt 0:01:03]} h5 {[%emt 0:00:00] Prevents Ng4.} (40... hxg5 41. hxg5 Kg8) 41. Nd3 {[%emt 0:01:06]} Kg8 {[%emt 0:00:00]} 42. Nc5 {[%emt 0:00:38]} Kf7 {[%emt 0:00:00]} 43. Rfe1 {[%emt 0:00:09] [#] Threatening mate with Re7+.} Raa7 {[%emt 0:00:00]} 44. Re8 {[%emt 0:01:14]} Nh7 {[%emt 0:00:00]} 45. Rd8 {[%emt 0:00:12]} Nf8 {[%emt 0:00:00]} 46. Ree8 {[%emt 0:00:19] Weighted Error Value: White=0.14 (very precise) /Black=0.50} 1-0

[Event "21st IPCA World Championship 2022"]
[Site "Ashdod"]
[Date "2022.05.10"]
[Round "3.5"]
[White "Lipilin, Ilia"]
[Black "Aleksandrova, Aleksandra"]
[Result "1-0"]
[ECO "D31"]
[WhiteElo "2198"]
[BlackElo "1687"]
[Annotator "TA"]
[PlyCount "63"]
[EventDate "2022.05.09"]
[EventType "swiss"]
[EventCountry "ISR"]
[SourceTitle "playchess.com"]
[Source "ChessBase"]
[SourceQuality "1"]
[TimeControl "5400+30"]

{[%evp 19,63,35,55,10,18,0,0,0,2,0,0,0,0,0,34,0,0,0,0,0,0,-6,0,-56,-13,-8,0,-81,-79,-93,-21,-24,-23,-24,9,7,13,8,49,28,396,385,702,684,4802,4686]} 1. d4 {[%emt 0:00:03]} d5 {[%emt 0:00:22]} 2. c4 {[%emt 0:00:08]} e6 {[%emt 0:00:08]} 3. Nc3 {[%emt 0:00:08]} c6 {[%emt 0:00:15]} 4. e4 {[%emt 0:00:09]} dxe4 {[%emt 0:00:06]} 5. Nxe4 {[%emt 0:00:07]} Nf6 {[%emt 0:00:14]} 6. Nxf6+ {[%emt 0:00:09]} Qxf6 {[%emt 0:00:16]} 7. Nf3 {[%emt 0:00:12]} Bb4+ {[%emt 0:00:29]} 8. Bd2 {[%emt 0:00:10]} Bxd2+ {[%emt 0:01:00]} 9. Qxd2 {[%emt 0:00:04]} O-O {[%emt 0:00:41]} 10. Bd3 {[%emt 0:00:09]} Nd7 {[%emt 0:00:52]} 11. O-O {[%emt 0:00:15] D31: Queen's Gambit Declined: Semi-Slav without ...Nf6 (+ Marshall Gambit and Noteboom) and Exchange Variation lines without ...Nf6.} (11. Ng5 $5 {[%cal Rg5h7]}) 11... e5 {[%emt 0:01:36]} 12. dxe5 {[%emt 0:04:25]} Nxe5 {[%emt 0:00:25]} 13. Nxe5 {[%emt 0:00:10] The position is equal.} Qxe5 {[%emt 0:00:05]} 14. Rfe1 {[%emt 0:00:12]} Qf6 {[%emt 0:01:14]} 15. Qb4 {[%emt 0:01:17][%cal Od3h7] [#] Bxh7+! is the strong threat.} Rd8 $146 {[%emt 0:03:53]} ({Predecessor:} 15... b6 16. Bxh7+ Kxh7 17. Qxf8 Bb7 18. Qe7 {1-0 (18) Gallagher,D (2035)-Gostelow,D (2072) England 2015}) 16. Re3 {[%emt 0:04:21]} a5 {[%emt 0:04:31]} 17. Qb6 {[%emt 0:00:44]} (17. Rae1 $5 {[%cal Re3e8]} Be6 18. Qxb7 $11) 17... Be6 {[%emt 0:15:23]} 18. Qxb7 {[%emt 0:06:32]} Rab8 {[%emt 0:00:32]} 19. Qxc6 {[%emt 0:00:13]} Rxb2 {[%emt 0:06:40]} 20. Rf1 {[%emt 0:01:41]} g6 {[%emt 0:07:24]} 21. a4 {[%emt 0:02:19]} (21. Qa4 $11) 21... Rd2 {[%emt 0:01:44]} 22. Be2 {[%emt 0:06:32]} Qb2 {[%emt 0:10:31]} 23. Bf3 {[%emt 0:04:25] [#]} (23. Rxe6 $11 fxe6 24. Qxe6+ Kh8 25. Bf3) 23... Rxf2 $1 $17 {[%emt 0:10:57]} 24. Rfe1 {[%emt 0:14:16] [#]} (24. Qb5 Rxf1+) 24... Rfd2 {[%emt 0:20:57]} (24... Rc2 $1 $17 25. Rxe6 fxe6 26. Qxe6+ Kh8) 25. Qb5 {[%emt 0:05:39]} Qd4 {[%emt 0:02:08]} 26. Qxa5 {[%emt 0:01:41]} Rd3 {[%emt 0:01:24]} 27. Qe5 {[%emt 0:01:31]} Rxe3 {[%emt 0:01:38]} 28. Qxe3 {[%emt 0:01:26]} Qxc4 {[%emt 0:00:57]} 29. a5 {[%emt 0:00:23]} Bd5 $2 {[%emt 0:02:11][%mdl 8192] [#]} (29... h6 $11 {and Black has nothing to worry.}) 30. Rd1 $1 $18 {[%emt 0:00:45]} Qa2 $2 {[%emt 0:05:16]} (30... Qb5 31. Qb6 Qxb6+ 32. axb6 Rb8 33. Bxd5 Rxb6) 31. Qd2 {[%emt 0:01:29] Threatening mate with Qxa2.} Ra8 {[%emt 0:01:07]} 32. Qxa2 {[%emt 0:00:15] Weighted Error Value: White=0.16 (very precise) /Black=0.61} 1-0